bitfinex/quotes_ETHUSD_20240630
["timestamp","ask_amount","ask_price","bid_price","bid_amount"]
[1719748652139,3.0,3394.3,3393.4,2.4186]
[1719748652140,0.55,3393.9,3393.4,2.4186]
[1719748652304,7.88,3394.2,3393.4,2.4186]
[1719748652506,3.0,3394.1,3393.4,2.4186]
[1719748652842,0.55,3394.0,3393.4,2.4186]
[1719748676719,0.90099336,3394.0,3393.4,2.4186]
[1719748677163,0.55,3394.0,3393.4,2.4186]
[1719748677333,0.35099336,3393.9,3393.4,2.4186]
[1719748677527,0.55,3393.8,3393.4,2.4186]
[1719748681839,0.90099336,3393.8,3393.3,0.148]
[1719748690735,0.90099336,3393.8,3393.4,2.4507]
[1719748692561,0.55,3393.8,3393.4,2.4507]
[1719748692763,4.16249413,3394.1,3393.4,2.4507]
[1719748692764,0.55,3394.0,3393.4,2.4507]
[1719748695375,0.90099336,3394.0,3393.4,2.4507]
[1719748698450,4.16241325,3394.1,3393.4,2.4507]
[1719748700790,7.33,3394.2,3393.4,2.4507]
[1719748701161,7.33,3394.2,3393.6,2.4507]
[1719748701481,7.33,3394.2,3393.8,2.4507]
[1719748702999,3.0,3394.1,3393.8,2.4507]
[1719748706170,3.0,3394.5,3393.8,2.4507]
[1719748709474,3.35099336,3394.5,3393.8,2.4507]
[1719748709680,3.35099336,3394.5,3393.8,2.72086631]
[1719748713223,3.35099336,3394.5,3393.8,2.4507]
[1719748713724,0.90099336,3394.4,3393.8,2.4507]
[1719748715702,0.90099336,3394.4,3393.3,2.6435]
[1719748734693,2.4973,3394.3,3393.3,2.6435]
[1719748734846,0.55,3394.2,3393.3,2.6435]
[1719748735250,3.55,3394.2,3393.3,2.6435]
[1719748743908,2.3081,3394.1,3393.3,2.6435]
[1719748744208,5.3081,3394.1,3393.3,2.6435]
[1719748748217,2.3081,3394.0,3393.3,0.148]
[1719748748382,5.3081,3394.0,3393.3,0.148]
[1719748748782,2.3081,3394.0,3393.3,0.148]
[1719748764831,2.3081,3394.0,3393.3,2.5181]
[1719748769912,5.3081,3394.0,3393.3,2.5181]
[1719748770129,2.3081,3394.0,3393.3,2.5181]
[1719748770528,2.3081,3394.0,3393.3,2.76991]
[1719748772822,2.3445,3394.3,3393.3,2.76991]
[1719748775626,2.3445,3394.3,3393.4,0.05893234]
[1719748776347,2.3445,3394.3,3393.5,2.3747]
[1719748776546,2.4136,3394.8,3393.5,2.65804423]
[1719748776861,2.4136,3394.6,3393.6,0.05892677]
[1719748777362,5.4136,3394.6,3393.6,0.05892677]
[1719748777526,2.4136,3394.5,3393.6,0.05892677]
[1719748777725,5.4136,3394.5,3393.6,0.05892677]
[1719748778127,2.4136,3394.5,3393.6,0.05892677]
[1719748781971,2.4136,3394.5,3393.7,2.3747]
[1719748800283,4.02908163,3395.0,3393.8,2.31452678]
[1719748801307,4.02908163,3395.0,3393.8,2.2556]
[1719748801989,3.0,3394.9,3393.8,2.2556]
[1719748802189,3.0,3394.9,3394.0,2.2556]
[1719748804499,5.472,3394.9,3394.0,2.2556]
[1719748808712,3.0,3394.9,3394.0,2.2556]
[1719748820464,3.0,3394.9,3394.1,2.44022163]
[1719748820625,3.0,3394.9,3394.2,2.68423702]
[1719748820810,3.0,3394.9,3394.4,2.3813]
[1719748827908,3.0,3394.9,3394.5,0.05891469]
[1719748828113,3.0,3394.9,3393.3,0.148]
[1719748828114,3.0,3394.9,3394.6,2.2975]
[1719748828368,3.0,3394.9,3394.8,2.2975]
[1719748829378,4.02908163,3395.0,3394.8,2.2975]
[1719748830567,3.0,3394.9,3394.8,2.2975]
[1719748844099,3.0,3394.9,3394.1,2.2906]
[1719748844398,3.0,3394.9,3394.3,2.2906]
[1719748853005,3.0,3394.9,3394.2,0.3470895]
[1719748853187,3.0,3394.9,3394.1,2.4486]
[1719748853188,2.4712,3394.8,3394.1,2.4486]
[1719748855410,3.0,3394.9,3394.1,2.4486]
[1719748858065,3.0,3394.9,3394.2,0.05891512]
[1719748858928,3.0,3394.9,3394.3,2.3947]
[1719748859198,3.0,3394.9,3394.4,0.29838165]
[1719748859965,3.0,3394.9,3394.5,2.3947]
[1719748862326,3.0,3394.9,3394.6,0.05890976]
[1719748862473,3.0,3394.9,3394.5,2.3947]
[1719748882038,3.0,3394.9,3393.8,2.4758]
[1719748882238,3.0,3394.9,3393.9,2.8414219]
[1719748882445,3.0,3394.9,3393.9,2.4758]
[1719748899480,2.4711,3394.8,3393.9,2.4758]
[1719748918679,2.4711,3394.8,3393.7,1.180419]
[1719748919486,2.4711,3394.8,3393.3,0.148]
[1719748919809,2.4324,3394.8,3393.3,0.148]
[1719748920846,3.0,3394.9,3393.3,0.148]
[1719748920847,2.77998246,3394.7,3393.3,0.148]
[1719748920977,2.4324,3394.5,3393.3,0.148]
[1719748923573,2.4324,3394.4,3393.3,2.4341]
[1719748923775,5.4324,3394.4,3393.3,2.7955763]
[1719748923990,5.4324,3394.4,3393.4,0.05892881]
[1719748924802,5.4324,3394.4,3393.5,2.2727]
[1719748926621,2.4013,3394.3,3393.3,0.5094763]
[1719748926822,5.4013,3394.3,3393.3,0.148]
[1719748927318,2.4013,3394.3,3393.3,0.148]
[1719748942628,2.4013,3394.3,3393.3,0.148]
[1719748948417,2.4013,3394.3,3393.5,2.2954]
[1719748948743,2.4013,3394.3,3393.6,0.3091576]
[1719748949032,2.4013,3394.3,3393.6,0.2502325]
[1719748950402,7.33,3394.5,3393.8,2.3579]
[1719748950605,7.33,3394.5,3393.9,0.05891741]
[1719748951936,7.33,3394.5,3393.8,2.3579]
[1719748961319,2.2847,3394.4,3393.6,2.3579]
[1719748961521,2.2847,3394.4,3393.7,0.23579]
[1719748962639,7.33,3394.5,3393.7,0.23579]
[1719748964432,7.33,3394.5,3393.8,0.05891885]
[1719748964621,7.33,3394.5,3393.9,2.4366]
[1719748964839,7.33,3394.5,3394.0,0.27313089]
[1719748965346,3.0,3394.8,3394.0,0.27313089]
[1719748966116,3.0,3394.8,3394.1,0.05891588]
[1719748967417,3.0,3394.8,3394.2,2.4366]
[1719748967618,3.0,3394.8,3394.3,0.05891214]
[1719748967880,3.0,3394.8,3394.4,0.24955121]
[1719748968173,3.0,3394.8,3394.5,0.05891215]
[1719748968368,3.0,3394.8,3394.4,0.24955121]
[1719748968570,3.0,3394.9,3394.5,0.05891059]
[1719748968739,3.0,3394.9,3394.6,2.4366]
[1719748976962,3.0,3394.9,3394.5,0.27450618]
[1719748977263,3.0,3394.9,3394.3,2.3068]
[1719748989944,4.02908163,3395.0,3394.4,0.05890938]
[1719748991491,4.02908163,3395.0,3394.3,2.3068]
[1719748992083,4.02908163,3395.0,3394.4,0.05890771]
[1719748992281,4.02908163,3395.0,3394.6,2.4759]
[1719748992483,4.02908163,3395.0,3394.7,0.05890775]
[1719748995404,4.02908163,3395.0,3394.8,2.4759]
[1719748995606,4.02908163,3395.0,3394.9,0.05890438]
[1719748996670,4.02908163,3395.0,3394.8,2.4759]
[1719748996901,4.02908163,3395.0,3394.9,0.24759]
[1719749000493,4.02908163,3395.0,3394.9,0.30649455]
[1719749003027,4.02908163,3395.0,3394.9,0.24759]
[1719749015045,4.02908163,3395.0,3394.9,0.30649194]
[1719749015225,4.02908163,3395.0,3394.9,2.8712]
[1719749019447,4.02908163,3395.0,3394.9,5.9802]
[1719749021486,4.02908163,3395.0,3394.9,2.8712]
[1719749033687,4.02908163,3395.0,3394.9,0.55]
[1719749033969,4.02908163,3395.0,3394.9,0.30406]
[1719749034171,4.02908163,3395.0,3394.9,0.85406]
[1719749057586,4.02908163,3395.0,3394.9,0.30406]
[1719749057786,4.02908163,3395.0,3394.4,4.53884409]
[1719749057986,4.02908163,3395.0,3394.3,2.2993]
[1719749057987,4.02908163,3395.0,3394.5,3.55]
[1719749058296,4.02908163,3395.0,3394.5,0.55]
[1719749058497,4.02908163,3395.0,3394.6,0.28493]
[1719749058696,4.02908163,3395.0,3394.7,0.55]
[1719749066434,6.37808163,3395.0,3394.7,0.55]
[1719749072528,6.37808163,3395.0,3394.6,0.28493]
[1719749072916,6.37808163,3395.0,3394.2,3.0]
[1719749073125,6.37808163,3395.0,3394.3,0.55]
[1719749073331,6.37808163,3395.0,3394.2,3.55]
[1719749073531,6.37808163,3395.0,3394.3,3.0]
[1719749073767,6.37808163,3395.0,3394.4,1.43895]
[1719749075958,4.02908163,3395.0,3394.6,2.3395]
[1719749076159,4.02908163,3395.0,3394.7,0.55]
[1719749082928,4.02908163,3395.0,3394.8,0.05890511]
[1719749083127,4.02908163,3395.0,3394.9,0.84484051]
[1719749086163,4.02908163,3395.0,3394.9,2.02474551]
[1719749116856,4.02908163,3395.0,3394.9,1.47474551]
[1719749116857,6.48848163,3395.0,3394.9,1.47474551]
[1719749117036,4.02908163,3395.0,3394.9,1.47474551]
[1719749117235,4.02908163,3395.0,3394.9,1.179905]
[1719749118218,4.02908163,3395.0,3394.9,1.729905]
[1719749127361,4.02908163,3395.0,3394.9,2.75567553]
[1719749129468,4.02908163,3395.0,3394.9,1.729905]
[1719749129669,4.02908163,3395.0,3394.9,2.99061741]
[1719749130958,4.02908163,3395.0,3394.9,4.58815664]
[1719749131361,4.02908163,3395.0,3394.9,4.52925103]
[1719749132370,4.02908163,3395.0,3394.9,1.96484738]
[1719749133295,4.02908163,3395.0,3394.9,4.52919101]
[1719749135253,4.02908163,3395.0,3394.9,1.96484738]
[1719749150624,4.02908163,3395.0,3394.9,4.52925079]
[1719749152064,4.02908163,3395.0,3394.9,4.52925004]
[1719749152259,4.02908163,3395.0,3394.9,1.96484738]
[1719749152459,4.02908163,3395.0,3394.9,4.52925005]
[1719749155086,4.02908163,3395.0,3394.9,1.96484738]
[1719749155375,4.02908163,3395.0,3394.9,4.52924976]
[1719749158181,0.35360065,3396.4,3394.9,4.52924976]
[1719749158182,2.4183,3397.8,3395.0,0.51492687]
[1719749158494,2.4183,3397.8,3396.2,2.2565]
[1719749158699,2.4183,3397.8,3396.3,3.78691993]
[1719749158896,2.4183,3397.8,3396.4,2.56336803]
[1719749159097,2.4183,3397.8,3396.5,1.57534721]
[1719749159300,2.4183,3397.8,3396.5,0.55]
[1719749159462,2.4183,3397.8,3396.4,0.55]
[1719749159669,2.4183,3397.8,3396.4,1.59090709]
[1719749166898,2.4183,3397.8,3396.4,0.55]
[1719749167303,2.4183,3397.8,3396.3,0.55]
[1719749167732,2.4183,3397.8,3396.0,0.55]
[1719749167933,2.4183,3397.8,3396.1,1.01779]
[1719749168138,2.4183,3397.8,3396.2,0.55]
[1719749170711,2.4183,3397.8,3396.2,1.729218]
[1719749170928,2.4183,3397.8,3396.2,4.729218]
[1719749172218,2.3903,3397.8,3396.2,4.729218]
[1719749172411,2.3903,3397.8,3396.3,0.5747008]
[1719749172615,2.3903,3397.8,3396.4,0.55]
[1719749179618,2.3903,3397.8,3396.3,0.55]
[1719749186278,2.3903,3397.8,3396.2,1.179218]
[1719749186576,2.3118,3398.0,3396.2,1.179218]
[1719749189155,2.3118,3397.8,3396.2,1.179218]
[1719749189364,2.3118,3397.7,3395.3,3.0]
[1719749189568,2.3118,3397.7,3395.7,1.17961]
[1719749189756,2.3118,3397.6,3395.7,1.17961]
[1719749189946,2.3118,3397.5,3395.7,1.17961]
[1719749198175,0.55,3397.4,3395.7,1.17961]
[1719749198478,2.3118,3397.3,3395.7,1.17961]
[1719749198664,2.3118,3397.2,3395.7,1.17961]
[1719749199070,2.3118,3397.1,3395.7,1.17961]
[1719749208054,2.3118,3397.1,3395.8,2.2918]
[1719749233407,2.3118,3397.1,3395.8,2.2638]
[1719749245938,2.3146,3397.4,3395.8,2.2638]
[1719749246144,2.3146,3397.4,3395.8,2.608141]
[1719749249549,5.3146,3397.4,3395.8,2.608141]
[1719749249713,2.3146,3397.4,3395.8,2.608141]
[1719749264920,2.2734,3397.7,3395.8,2.608141]
[1719749268864,3.37692031,3398.1,3395.8,2.66703388]
[1719749268865,2.2734,3397.9,3395.8,2.66703388]
[1719749269162,2.2734,3397.9,3396.0,2.2944]
[1719749287743,5.3824,3397.9,3396.0,2.2944]
[1719749287969,3.0,3397.8,3396.0,2.2944]
[1719749290785,2.972,3397.8,3396.0,2.2944]
[1719749294089,3.0,3397.7,3396.0,2.2944]
[1719749294386,3.0,3398.0,3396.0,2.2944]
[1719749294580,3.0,3398.0,3396.2,2.4803]
[1719749296494,3.26788523,3398.1,3396.2,2.4803]
[1719749297021,3.0,3398.1,3396.2,2.4803]
[1719749303493,0.26788384,3398.5,3395.7,1.17961]
[1719749303494,0.26787595,3398.5,3396.4,2.4803]
[1719749303693,0.26787595,3398.5,3396.5,2.73421865]
[1719749303995,0.26787595,3398.5,3396.5,2.4803]
[1719749304347,0.26787595,3398.5,3396.6,0.05887863]
[1719749304635,0.26787595,3398.5,3396.7,2.4816]
[1719749305055,3.0,3398.7,3396.7,2.4816]
[1719749305343,3.109,3398.8,3396.7,2.4816]
[1719749306446,3.0,3398.7,3396.7,2.4816]
[1719749312453,3.0,3398.7,3396.7,2.6296]
[1719749312647,3.0,3398.7,3396.9,2.4816]
[1719749315347,3.0,3398.7,3397.0,1.17937]
[1719749315555,3.0,3398.7,3397.1,2.4816]
[1719749318353,6.109,3398.8,3397.1,2.4816]
[1719749340514,3.0,3398.8,3397.1,2.4816]
[1719749340673,3.0,3398.8,3397.2,2.782197]
[1719749340879,3.267853,3399.0,3397.2,2.4161]
[1719749341081,3.0,3398.7,3397.2,2.4161]
[1719749341275,3.267853,3399.0,3397.2,2.4161]
[1719749341480,3.0,3399.0,3397.4,2.4161]
[1719749341713,3.108,3398.9,3397.4,2.4161]
[1719749341920,3.0,3398.8,3397.4,2.4161]
[1719749342590,3.108,3399.3,3397.4,2.4161]
[1719749342775,3.108,3399.1,3397.4,2.4161]
[1719749342975,3.55,3399.2,3397.4,2.4161]
[1719749342976,3.108,3398.9,3397.4,2.4161]
[1719749343515,3.0,3398.8,3397.4,2.4161]
[1719749343813,3.0,3398.8,3397.6,2.4161]
[1719749344022,3.0,3399.0,3397.6,2.4161]
[1719749344793,3.108,3398.9,3397.6,2.4161]
[1719749344992,3.0,3398.8,3397.6,2.4161]
[1719749345405,0.29041544,3399.4,3397.6,2.4161]
[1719749345406,3.108,3399.1,3397.6,2.4161]
[1719749345817,3.0,3399.0,3397.6,2.4161]
[1719749346620,3.108,3399.1,3397.6,2.4161]
[1719749346806,3.0,3399.0,3397.6,2.4161]
[1719749347999,3.108,3399.1,3397.6,2.4161]
[1719749348199,3.0,3399.0,3397.6,2.4161]
[1719749349231,3.108,3399.1,3397.6,2.4161]
[1719749349438,6.108,3399.0,3397.6,2.4161]
[1719749351119,3.108,3398.8,3397.6,2.4161]
[1719749351332,3.0,3398.7,3397.6,2.4161]
[1719749352655,3.0,3398.7,3397.6,2.3881]
[1719749383996,3.0,3398.6,3397.6,2.3881]
[1719749384207,3.0,3399.1,3397.6,2.3881]
[1719749384401,0.55,3399.0,3397.6,2.3881]
[1719749387122,3.108,3398.9,3397.6,2.3881]
[1719749387421,3.0,3398.8,3397.6,2.3881]
[1719749388001,0.26780755,3399.4,3397.6,2.3881]
[1719749388206,0.26780755,3399.7,3397.7,2.51495005]
[1719749388401,7.63790208,3399.5,3397.9,2.4561]
[1719749388609,7.63790208,3399.5,3398.1,2.4561]
[1719749388930,7.33,3400.0,3398.1,2.4561]
[1719749389498,3.0,3399.9,3398.1,2.4561]
[1719749394846,3.108,3400.2,3398.1,2.4561]
[1719749395055,3.0,3400.1,3398.3,2.2501]
[1719749396150,3.108,3400.2,3398.3,2.2501]
[1719749396313,3.0,3400.1,3398.3,2.2501]
[1719749396630,3.0,3400.1,3398.5,2.2501]
[1719749398416,3.108,3400.2,3398.5,2.2501]
[1719749398754,3.0,3400.1,3398.5,2.2501]
[1719749400519,3.108,3400.2,3398.5,2.2501]
[1719749400743,3.0,3400.1,3398.7,2.2501]
[1719749402950,3.108,3400.2,3398.7,2.2501]
[1719749403141,3.0,3400.1,3398.7,2.2501]
[1719749403345,3.108,3399.9,3398.7,2.2501]
[1719749403753,3.0,3399.8,3398.7,2.2501]
[1719749413682,2.972,3399.8,3398.7,2.2501]
[1719749415350,3.108,3400.2,3398.7,2.2501]
[1719749415544,3.108,3400.0,3398.7,2.2501]
[1719749415740,3.108,3400.0,3398.7,2.47511]
[1719749415959,3.0,3399.9,3398.7,2.47511]
[1719749416645,3.0,3400.2,3398.7,2.47511]
[1719749418709,3.108,3400.6,3398.7,2.47511]
[1719749418710,3.108,3400.4,3398.7,2.47511]
[1719749418902,3.0,3400.3,3398.7,2.47511]
[1719749419139,0.26772697,3400.6,3398.7,2.47511]
[1719749419140,6.108,3400.4,3398.7,2.47511]
[1719749419269,6.108,3400.4,3398.9,2.4485]
[1719749421262,3.0,3400.4,3398.9,2.4485]
[1719749421460,6.108,3400.5,3398.9,2.4485]
[1719749421679,6.108,3400.5,3399.1,2.4485]
[1719749424776,3.0,3400.5,3399.1,2.4485]
[1719749425097,3.0,3400.6,3399.1,2.4485]
[1719749426164,3.26768498,3400.6,3399.1,2.4485]
[1719749427368,3.26769927,3400.6,3399.1,2.4485]
[1719749427796,3.26770299,3400.6,3399.1,2.4485]
[1719749430706,3.108,3400.8,3399.1,2.4485]
[1719749430899,6.108,3400.7,3399.1,2.4485]
[1719749431104,6.108,3400.7,3399.1,2.69335]
[1719749442013,3.108,3400.5,3399.1,2.4485]
[1719749442319,3.0,3400.4,3399.1,2.4485]
[1719749448575,3.0,3400.4,3400.2,0.003]
[1719749448740,20.764467,3400.3,3400.2,0.003]
[1719749449071,3.0,3400.3,3400.2,0.003]
[1719749449279,3.0,3400.4,3400.2,0.003]
[1719749452037,6.108,3400.4,3400.2,0.003]
[1719749452438,19.433792,3400.3,3400.2,0.003]
[1719749452634,24.742792,3400.3,3400.2,0.003]
[1719749452967,25.01049988,3400.3,3400.2,0.003]
[1719749453149,25.01054677,3400.3,3400.2,0.003]
[1719749453539,24.742792,3400.3,3400.2,0.003]
[1719749453744,25.01055124,3400.3,3400.2,0.003]
[1719749454359,25.01055124,3400.3,3400.2,0.151]
[1719749455383,23.13861124,3400.3,3400.2,0.151]
[1719749455768,9.23475924,3400.3,3400.2,0.151]
[1719749455968,28.48269824,3400.3,3400.2,0.151]
[1719749456198,34.01035224,3400.3,3400.2,0.151]
[1719749456365,34.01035028,3400.3,3400.2,0.151]
[1719749456563,32.94689128,3400.3,3400.2,0.151]
[1719749456835,25.83726328,3400.3,3400.2,0.151]
[1719749456995,25.10072228,3400.3,3400.2,0.151]
[1719749457535,23.98874228,3400.3,3400.2,0.151]
[1719749459639,23.9887441,3400.3,3400.2,0.151]
[1719749460919,10.4980441,3400.3,3400.2,0.151]
[1719749461122,10.230285,3400.3,3400.2,0.151]
[1719749462201,10.780285,3400.3,3400.2,0.151]
[1719749465071,11.04802305,3400.3,3400.2,0.151]
[1719749465290,11.0480337,3400.3,3400.2,0.151]
[1719749465628,10.780285,3400.3,3400.2,0.151]
[1719749465940,11.04803578,3400.3,3400.2,0.151]
[1719749466679,27.26487978,3400.3,3400.2,0.151]
[1719749468380,27.26488006,3400.3,3400.2,0.151]
[1719749469239,26.63726506,3400.3,3400.2,0.151]
[1719749470347,26.63726506,3400.3,3400.2,0.123]
[1719749471278,20.24621806,3400.3,3400.2,0.123]
[1719749471600,13.577169,3400.3,3400.2,0.123]
[1719749471742,13.84491783,3400.3,3400.2,0.123]
[1719749473374,13.84491783,3400.3,3399.8,2.2683]
[1719749473547,3.108,3400.1,3399.8,2.2683]
[1719749473962,3.108,3399.9,3399.8,2.2683]
[1719749474161,3.658,3399.9,3399.8,2.2683]
[1719749474463,6.658,3399.9,3399.8,2.2683]
[1719749475569,3.0,3399.9,3399.8,2.2683]
[1719749475756,3.0,3400.1,3399.8,2.2683]
[1719749476359,3.26774936,3400.1,3399.8,2.2683]
[1719749478274,3.26772264,3400.1,3399.8,2.3903]
[1719749478470,3.0,3400.1,3399.8,2.3903]
[1719749478650,3.2677212,3400.1,3399.8,2.3903]
[1719749479639,3.26297405,3400.1,3399.8,2.3903]
[1719749481146,3.26297232,3400.1,3399.8,2.3903]
[1719749481346,2.99525285,3400.1,3399.8,2.3903]
[1719749481545,3.26297246,3400.1,3399.8,2.3903]
[1719749484234,6.37097246,3400.1,3399.8,2.3903]
[1719749484446,6.37099832,3400.1,3399.8,0.122]
[1719749484652,6.63874381,3400.1,3399.8,0.122]
[1719749485072,3.108,3399.9,3399.8,0.122]
[1719749485239,6.108,3399.9,3399.8,0.122]
[1719749486354,9.036166,3399.9,3399.8,0.122]
[1719749491555,6.658,3399.9,3399.8,0.122]
[1719749491761,13.189119,3399.9,3399.8,0.122]
[1719749492486,13.45687438,3399.9,3399.8,0.122]
[1719749494148,13.45687423,3399.9,3399.8,0.122]
[1719749494563,12.65968823,3399.9,3399.8,0.122]
[1719749497401,12.65969052,3399.9,3399.8,0.122]
[1719749500412,12.391933,3399.9,3399.8,0.122]
[1719749500624,12.65969099,3399.9,3399.8,0.122]
[1719749502384,14.27445599,3399.9,3399.8,0.122]
[1719749503019,13.53445599,3399.9,3399.8,0.122]
[1719749503784,13.266698,3399.9,3399.8,0.122]
[1719749503989,13.53445592,3399.9,3399.8,0.122]
[1719749504226,13.266698,3399.9,3399.8,0.122]
[1719749504426,13.53445595,3399.9,3399.8,0.122]
[1719749506087,6.92575795,3399.9,3399.8,0.122]
[1719749506796,6.658,3399.9,3399.8,0.122]
[1719749507642,6.658,3399.9,3399.8,2.413]
[1719749513045,6.658,3399.9,3399.8,0.122]
[1719749520426,34.579345,3399.9,3399.8,0.122]
[1719749521339,34.84708955,3399.9,3399.8,0.122]
[1719749521539,30.35724555,3399.9,3399.8,0.122]
[1719749522048,30.089501,3399.9,3399.8,0.122]
[1719749522231,30.35726946,3399.9,3399.8,0.122]
[1719749523350,2.2945,3399.8,3398.1,2.291]
[1719749523553,3.658,3399.7,3398.1,2.291]
[1719749523757,3.92576846,3399.7,3398.1,2.291]
[1719749524049,3.108,3399.5,3398.1,2.291]
[1719749524225,6.658,3399.4,3398.1,2.291]
[1719749524425,3.0,3399.3,3398.1,2.5201]
[1719749525352,3.0,3399.3,3398.1,2.291]
[1719749525353,5.9085,3399.2,3398.1,2.291]
[1719749525530,3.108,3399.0,3398.1,2.291]
[1719749526267,3.0,3398.9,3398.1,2.291]
[1719749526672,10.1305,3399.2,3398.1,2.291]
[1719749526673,6.108,3399.0,3398.1,2.291]
[1719749532060,3.658,3398.9,3398.1,2.291]
[1719749532479,3.0,3398.8,3398.1,2.291]
[1719749547176,3.0,3399.0,3398.1,2.291]
[1719749547378,3.0,3399.0,3398.3,2.29]
[1719749548204,7.33,3399.2,3398.3,2.29]
[1719749548205,3.0,3399.1,3398.3,2.29]
[1719749577424,3.0,3399.1,3398.4,0.05885257]
[1719749577652,3.0,3399.1,3397.6,2.4087]
[1719749577821,3.0,3399.1,3397.8,2.4087]
[1719749578020,3.0,3399.1,3398.0,2.4087]
[1719749578021,2.5,3399.1,3398.0,2.4087]
[1719749578255,2.5,3399.1,3398.2,2.4087]
[1719749578551,2.5,3399.1,3398.4,2.4087]
[1719749584325,2.5,3399.1,3398.5,0.05884361]
[1719749584540,2.5,3399.1,3397.5,2.4672]
[1719749584759,2.5,3399.1,3397.7,2.4672]
[1719749584958,2.5,3399.1,3397.9,2.4672]
[1719749585136,2.5,3399.1,3398.1,2.4672]
[1719749585336,2.5,3399.1,3398.3,2.4672]
[1719749585539,2.5,3399.1,3398.5,2.4672]
[1719749591555,2.5,3399.1,3398.6,2.52604228]
[1719749591732,2.5,3399.1,3398.6,2.4672]
[1719749618892,2.5,3399.1,3398.8,2.2868]
[1719749619234,2.5,3399.1,3399.0,2.2868]
[1719749619530,3.0,3399.4,3399.0,2.2868]
[1719749624431,3.0,3399.5,3399.0,2.2868]
[1719749633525,3.0,3399.5,3398.2,2.3968]
[1719749633761,3.0,3399.5,3398.4,2.3968]
[1719749633970,3.0,3399.5,3398.6,2.3968]
[1719749634164,3.0,3399.5,3398.7,0.05883416]
[1719749638981,3.0,3399.5,3398.7,0.05883416]
[1719749639701,2.3935,3399.4,3398.7,0.05883416]
[1719749642572,2.3935,3399.4,3398.6,2.3968]
[1719749651111,2.3935,3399.4,3398.1,2.3376]
[1719749651273,2.3935,3399.4,3398.2,0.3516595]
[1719749671609,2.3935,3399.4,3398.3,0.05884027]
[1719749677129,2.3935,3399.4,3398.2,0.3516595]
[1719749705737,2.3935,3399.4,3398.3,0.05884068]
[1719749706337,2.3935,3399.4,3398.2,0.3516595]
[1719749706539,2.3789,3399.4,3398.3,0.15306545]
[1719749708026,2.3789,3399.4,3398.4,0.05884071]
[1719749712230,2.3789,3399.4,3398.3,0.15306545]
[1719749734659,3.35433684,3399.5,3398.3,0.15306545]
[1719749734660,3.35433684,3399.5,3398.4,2.3801]
[1719749734876,3.35433684,3399.5,3398.6,2.3801]
[1719749734877,3.0,3399.5,3398.6,2.3801]
[1719749738151,3.0,3399.5,3398.8,2.3801]
[1719749738356,3.0,3399.5,3398.9,0.05882899]
[1719749739496,7.33,3399.6,3398.9,0.05882899]
[1719749739686,7.33,3399.6,3399.0,0.2438929]
[1719749739862,7.33,3399.6,3399.1,0.05882816]
[1719749740600,7.33,3399.6,3399.2,2.3801]
[1719749741354,7.33,3399.6,3398.6,2.3801]
[1719749741590,7.33,3399.6,3398.7,0.55]
[1719749741864,7.33,3399.6,3398.8,2.3801]
[1719749742555,7.33,3399.6,3399.0,2.3801]
[1719749742760,7.33,3399.6,3399.1,0.29301]
[1719749743272,3.0,3399.9,3399.1,0.29301]
[1719749743594,5.2923,3400.1,3399.1,0.29301]
[1719749750665,5.2923,3400.1,3399.2,1.178569]
[1719749750990,5.2923,3400.1,3399.3,0.3851679]
[1719749754707,3.0,3400.1,3399.4,2.321]
[1719749755792,2.95,3400.1,3399.4,2.321]
[1719749760794,2.9,3400.1,3399.4,2.321]
[1719749761411,2.9,3400.1,3399.5,0.05882024]
[1719749761715,2.9,3400.1,3399.5,0.41465916]
[1719749762476,2.9,3400.1,3399.6,2.321]
[1719749762900,2.9,3400.1,3399.5,2.321]
[1719749763102,5.1957,3400.1,3399.5,2.321]
[1719749763912,7.33,3400.2,3399.5,2.321]
[1719749764080,7.33,3400.2,3399.6,2.37982132]
[1719749764283,7.33,3400.2,3399.8,2.321]
[1719749764509,7.33,3400.2,3399.7,0.23798213]
[1719749764510,7.33,3400.2,3400.0,2.4468]
[1719749764813,7.33,3400.2,3400.1,0.05881476]
[1719749766323,7.33,3400.2,3400.0,2.4468]
[1719749767126,19.63,3400.7,3400.0,2.4468]
[1719749767312,19.63,3400.7,3400.1,0.24468]
[1719749769288,19.63,3400.7,3399.7,2.4468]
[1719749772220,7.33,3400.7,3399.7,2.4468]
[1719749772387,3.0,3400.6,3399.7,2.4468]
[1719749773924,3.0,3400.6,3399.8,0.05881735]
[1719749779616,3.0,3400.6,3399.8,2.4468]
[1719749779827,3.0,3400.6,3399.9,0.24468]
[1719749784621,5.475,3400.6,3399.8,2.4468]
[1719749788743,5.475,3400.6,3399.3,2.4417]
[1719749788976,2.475,3400.5,3399.3,2.4417]
[1719749793269,2.475,3400.5,3399.4,0.05882542]
[1719749796782,2.475,3400.5,3399.3,2.4417]
[1719749797844,2.475,3400.5,3399.4,0.05882542]
[1719749798684,2.475,3400.5,3399.3,2.4417]
[1719749799063,2.475,3400.5,3399.1,3.620307]
[1719749801586,2.475,3400.5,3399.1,2.4417]
[1719749801793,3.35373311,3400.6,3398.3,0.15306545]
[1719749801794,2.475,3400.3,3398.4,2.4417]